bitfinex/quotes_BTCUSD_20250515
["timestamp","ask_amount","ask_price","bid_price","bid_amount"]
[1747309572831,0.01955865,102250.0,102240.0,0.58345233]
[1747309573039,0.02933821,102250.0,102240.0,1.20376295]
[1747309573350,0.03911796,102250.0,102240.0,0.92345166]
[1747309573760,0.03911796,102250.0,102240.0,0.92956335]
[1747309573961,0.23471698,102250.0,102240.0,0.64925206]
[1747309574182,0.24449683,102250.0,102240.0,0.92956335]
[1747309574570,0.04889781,102250.0,102240.0,0.92956335]
[1747309574987,0.04889781,102250.0,102240.0,0.61013037]
[1747309574988,0.22493857,102250.0,102240.0,0.61013037]
[1747309575450,0.21515882,102250.0,102240.0,0.06473141]
[1747309576164,0.21515882,102250.0,102240.0,0.26034956]
[1747309576285,0.21515882,102250.0,102240.0,0.27991127]
[1747309577968,0.21515882,102250.0,102240.0,0.06473141]
[1747309578213,0.21515882,102250.0,102240.0,0.54085009]
[1747309578847,0.21515882,102250.0,102240.0,0.34523194]
[1747309579215,0.21515882,102250.0,102240.0,0.06492065]
[1747309579618,0.21515882,102250.0,102240.0,0.05513975]
[1747309579814,0.21515882,102250.0,102240.0,0.2507579]
[1747309580058,0.21515882,102250.0,102240.0,0.2605388]
[1747309581610,0.21515882,102250.0,102240.0,0.2507579]
[1747309582163,0.21515882,102250.0,102240.0,0.03953975]
[1747309582500,0.21515882,102250.0,102240.0,0.02413975]
[1747309582735,0.31246822,102250.0,102240.0,0.02413975]
[1747309582926,0.32816822,102250.0,102240.0,0.02413975]
[1747309583354,0.34406822,102250.0,102240.0,0.01802806]
[1747309584348,0.34406822,102250.0,102240.0,0.02414022]
[1747309585179,0.34406822,102250.0,102240.0,0.00348721]
[1747309585180,0.53410822,102250.0,102240.0,0.00348721]
[1747309585551,0.53410822,102250.0,102240.0,0.01802806]
[1747309586183,0.53510822,102250.0,102240.0,0.01802806]
[1747309586506,0.94221121,102250.0,102240.0,0.01602806]
[1747309586885,0.94221121,102250.0,102240.0,0.00148721]
[1747309590827,1.13201121,102250.0,102240.0,0.00148721]
[1747309594687,0.94221121,102250.0,102240.0,0.00148721]
[1747309594894,1.06522822,102250.0,102240.0,0.00148721]
[1747309595245,0.68506822,102250.0,102240.0,0.00148721]
[1747309595453,1.06526822,102250.0,102240.0,0.00148721]
[1747309597227,1.06530822,102250.0,102240.0,0.00148721]
[1747309597428,1.04940822,102250.0,102240.0,0.00148721]
[1747309597657,0.66916822,102250.0,102240.0,0.00148721]
[1747309597882,1.04944822,102250.0,102240.0,0.00148721]
[1747309598392,1.04940822,102250.0,102240.0,0.00148721]
[1747309598834,0.85924822,102250.0,102240.0,0.00148721]
[1747309599048,1.04932822,102250.0,102240.0,0.00148721]
[1747309600129,1.14663762,102250.0,102240.0,0.00148721]
[1747309600384,1.16263762,102250.0,102240.0,0.00148721]
[1747309604109,1.14663762,102250.0,102240.0,0.00148721]
[1747309604571,1.03366822,102250.0,102240.0,0.00148721]
[1747309605057,0.69366822,102250.0,102240.0,0.04712806]
[1747309605976,0.50354822,102250.0,102240.0,0.04712806]
[1747309607964,0.50354822,102250.0,102240.0,0.01602806]
[1747309608406,0.51934822,102250.0,102240.0,0.01602806]
[1747309609053,0.50354822,102250.0,102240.0,0.01602806]
[1747309609277,0.69330822,102250.0,102240.0,0.01602806]
[1747309610150,0.69330822,102250.0,102240.0,0.04792806]
[1747309610376,0.4781494,102250.0,102240.0,0.04792806]
[1747309610616,0.4781494,102250.0,102240.0,0.5397503]
[1747309610617,0.22593742,102250.0,102240.0,0.5397503]
[1747309610864,0.22593809,102250.0,102240.0,0.54953092]
[1747309611503,0.21615862,102250.0,102240.0,0.5397503]
[1747309611723,0.20537887,102250.0,102240.0,0.5417503]
[1747309611926,0.20537887,102250.0,102240.0,0.5437503]
[1747309612137,0.20537887,102250.0,102240.0,0.5417503]
[1747309612349,0.20537887,102250.0,102240.0,0.5437503]
[1747309613212,0.20537887,102250.0,102240.0,0.26343901]
[1747309613441,0.19559902,102250.0,102240.0,0.5437503]
[1747309614197,0.19559902,102250.0,102240.0,0.53396949]
[1747309616578,0.19559902,102250.0,102240.0,0.33835134]
[1747309617324,0.19559902,102250.0,102240.0,0.53396949]
[1747309617499,0.19559902,102250.0,102240.0,0.33835134]
[1747309619505,0.20537839,102250.0,102240.0,0.55353101]
[1747309619717,0.20537839,102250.0,102240.0,0.5535312]
[1747309619924,0.20537839,102250.0,102240.0,0.56331191]
[1747309620154,0.19559902,102250.0,102240.0,0.56331191]
[1747309620356,0.19559902,102250.0,102240.0,0.5535312]
[1747309620819,0.19559902,102250.0,102240.0,0.56331191]
[1747309621129,0.19559374,102270.0,102260.0,0.25129973]
[1747309621258,0.19559374,102270.0,102260.0,0.32625214]
[1747309621468,0.19559374,102270.0,102260.0,0.33236413]
[1747309622348,0.19559374,102270.0,102260.0,0.05205284]
[1747309623098,0.29290314,102270.0,102260.0,0.02065284]
[1747309623340,0.32390314,102270.0,102260.0,0.02065284]
[1747309623535,0.32390314,102270.0,102260.0,0.02165284]
[1747309623738,0.32390314,102270.0,102260.0,0.001]
[1747309628777,0.29290314,102270.0,102260.0,0.001]
[1747309628984,0.29290314,102270.0,102260.0,0.0331]
[1747309629183,0.00977708,102280.0,102270.0,0.0316]
[1747309629546,0.50200621,102280.0,102270.0,0.0316]
[1747309630288,0.50200621,102280.0,102270.0,0.0326]
[1747309630587,0.31240621,102280.0,102270.0,0.03871049]
[1747309631025,0.31240621,102280.0,102270.0,0.02271049]
[1747309631228,0.32810621,102280.0,102270.0,0.00711049]
[1747309631814,0.31240621,102280.0,102270.0,0.00711049]
[1747309632642,0.31240621,102280.0,102270.0,0.001]
[1747309633056,0.31240621,102280.0,102270.0,0.0071103]
[1747309636553,0.31240621,102280.0,102270.0,0.31842159]
[1747309636757,0.31240621,102280.0,102270.0,0.53353814]
[1747309636961,0.31240621,102280.0,102270.0,0.31842159]
[1747309638163,0.31240621,102280.0,102270.0,0.0381103]
[1747309638805,0.31240621,102280.0,102270.0,0.24344901]
[1747309639214,0.31240621,102280.0,102270.0,0.2434491]
[1747309639498,0.31240621,102280.0,102270.0,0.25322704]
[1747309639670,0.29285234,102280.0,102270.0,0.04788833]
[1747309640288,0.29285234,102280.0,102270.0,0.24344901]
[1747309640617,0.20532002,102280.0,102270.0,0.5237603]
[1747309640822,0.20532002,102280.0,102270.0,0.31842159]
[1747309641038,0.20532002,102280.0,102270.0,0.54719207]
[1747309641241,0.20532002,102280.0,102270.0,0.5237603]
[1747309641442,0.20532002,102280.0,102270.0,0.53353814]
[1747309642289,0.20532002,102280.0,102270.0,0.5237603]
[1747309642707,0.21509681,102280.0,102270.0,0.5480788]
[1747309643095,0.21509681,102280.0,102270.0,0.53830115]
[1747309643522,0.21509681,102280.0,102270.0,0.5480789]
[1747309644063,0.21509681,102280.0,102270.0,0.53830115]
[1747309644417,0.21509681,102280.0,102270.0,0.25798986]
[1747309644847,0.20532002,102280.0,102270.0,0.52852321]
[1747309645451,0.20532002,102280.0,102270.0,0.53830124]
[1747309646013,0.19554294,102280.0,102270.0,0.05265115]
[1747309646606,0.19554294,102280.0,102270.0,0.02165115]
[1747309647282,0.19554294,102280.0,102270.0,0.03675115]
[1747309648514,0.32395234,102280.0,102270.0,0.02165115]
[1747309651169,0.29285234,102280.0,102270.0,0.33326244]
[1747309651395,0.20531925,102280.0,102270.0,0.52882321]
[1747309651608,0.21509533,102280.0,102270.0,0.52882321]
[1747309651807,0.21509533,102280.0,102270.0,0.54837899]
[1747309652480,0.21509533,102280.0,102270.0,0.53860124]
[1747309652883,0.20531854,102280.0,102270.0,0.05295115]
[1747309653005,0.20531854,102280.0,102270.0,0.58751192]
[1747309653006,0.19554165,102280.0,102270.0,0.58751192]
[1747309653208,0.19554165,102280.0,102270.0,0.87760115]
[1747309654056,0.21509562,102280.0,102270.0,0.89715655]
[1747309654252,0.22487222,102280.0,102270.0,0.89715655]
[1747309654456,0.0097766,102280.0,102270.0,0.93036568]
[1747309654670,0.19550342,102300.0,102290.0,0.21507448]
[1747309654868,0.32213726,102300.0,102290.0,0.20529865]
[1747309655073,0.31236267,102300.0,102290.0,0.48560985]
[1747309655298,0.30258779,102300.0,102290.0,0.28642064]
[1747309655918,0.30263603,102300.0,102290.0,0.00710935]
[1747309656118,0.30263603,102300.0,102290.0,0.28742064]
[1747309656321,0.30263603,102300.0,102290.0,0.28642064]
[1747309656767,0.30263603,102300.0,102290.0,0.28742064]
[1747309657281,0.30263603,102300.0,102290.0,0.00710935]
[1747309657667,0.31833603,102300.0,102290.0,0.00710935]
[1747309657872,0.33473603,102300.0,102290.0,0.00710935]
[1747309659489,0.33473603,102300.0,102290.0,0.01715976]
[1747309661322,0.31833603,102300.0,102290.0,0.01715976]
[1747309661530,0.31833603,102300.0,102290.0,0.00710935]
[1747309662563,0.20532663,102300.0,102290.0,0.52878402]
[1747309662781,0.20532663,102300.0,102290.0,0.33326149]
[1747309662987,0.21510085,102300.0,102290.0,0.54829921]
[1747309663186,0.2346507,102300.0,102290.0,0.54829921]
[1747309663372,0.2248762,102300.0,102290.0,0.55807514]
[1747309664100,0.21510151,102300.0,102290.0,0.54829921]
[1747309664309,0.20532673,102300.0,102290.0,0.06268936]
[1747309665572,0.20532673,102300.0,102290.0,0.27776404]
[1747309665775,0.20532673,102300.0,102290.0,0.25821189]
[1747309665979,0.32396106,102300.0,102290.0,0.0216502]
[1747309671676,0.29286106,102300.0,102290.0,0.0216502]
[1747309672978,0.30806106,102300.0,102290.0,0.0216502]
[1747309679227,0.29286106,102300.0,102290.0,0.0216502]
[1747309679628,0.30836106,102300.0,102290.0,0.0216502]
[1747309680534,0.19555166,102300.0,102290.0,0.0527502]
[1747309680748,0.00982274,102300.0,102290.0,0.55791143]
[1747309680925,4.824e-05,102300.0,102290.0,0.57746243]
[1747309682474,0.00982264,102300.0,102290.0,0.59311881]
[1747309683720,0.22487534,102300.0,102290.0,0.29325652]
[1747309683725,0.23465031,102300.0,102290.0,0.28348088]
[1747309683944,0.22487658,102300.0,102290.0,0.34771787]
[1747309684164,0.2151018,102300.0,102290.0,0.34971787]
[1747309684813,0.2151018,102300.0,102290.0,0.55501652]
[1747309685692,0.2151018,102300.0,102290.0,0.36927002]
[1747309685879,0.2151018,102300.0,102290.0,0.35949399]
[1747309686330,0.2151018,102300.0,102290.0,0.55501652]
[1747309686551,0.2151018,102300.0,102290.0,0.61047541]
[1747309686779,0.2151018,102300.0,102290.0,0.60069938]
[1747309686997,0.2151018,102300.0,102290.0,0.61047541]
[1747309687733,0.2151018,102300.0,102290.0,0.09968944]
[1747309687952,0.20532683,102300.0,102290.0,0.36430073]
[1747309688144,0.20532683,102300.0,102290.0,0.37407685]
[1747309689768,4.824e-05,102300.0,102290.0,0.6313266]
[1747309689987,0.00982274,102300.0,102290.0,0.6313266]
[1747309690433,4.824e-05,102300.0,102290.0,0.9713266]
[1747309690628,4.824e-05,102300.0,102290.0,1.068636]
[1747309690889,4.824e-05,102300.0,102290.0,1.72574729]
[1747309691828,4.824e-05,102300.0,102290.0,1.72474729]
[1747309692284,4.824e-05,102300.0,102290.0,1.68006443]
[1747309692468,4.824e-05,102300.0,102290.0,1.68406443]
[1747309693725,4.824e-05,102300.0,102290.0,2.09336443]
[1747309694382,4.824e-05,102300.0,102290.0,1.81305314]
[1747309697160,4.824e-05,102300.0,102290.0,1.81277314]
[1747309697824,0.2338983,102330.0,102320.0,0.25462496]
[1747309698039,0.2338983,102330.0,102320.0,0.51963625]
[1747309698040,0.23394654,102330.0,102320.0,0.51963625]
[1747309698268,0.2248101,102330.0,102320.0,0.5257456]
[1747309698482,0.24435374,102330.0,102320.0,0.5257456]
[1747309698744,0.24435374,102330.0,102320.0,0.53551819]
[1747309698932,0.24435374,102330.0,102320.0,0.53651819]
[1747309699183,0.25661057,102330.0,102320.0,0.24643488]
[1747309699401,0.24151057,102330.0,102320.0,0.54629182]
[1747309699619,0.03036457,102330.0,102320.0,0.53651856]
[1747309699803,0.22581067,102330.0,102320.0,0.55995033]
[1747309700071,0.22581067,102330.0,102320.0,0.53651856]
[1747309700732,0.23253875,102330.0,102320.0,0.51697291]
[1747309700915,0.23926664,102330.0,102320.0,0.53649532]
[1747309701164,0.23926664,102330.0,102320.0,0.54626819]
[1747309701347,0.22276664,102330.0,102320.0,0.54626819]
[1747309702213,0.22276664,102330.0,102320.0,0.59186512]
[1747309703885,0.23786664,102330.0,102320.0,0.07699657]
[1747309704288,0.33517604,102330.0,102320.0,0.07699657]
[1747309704706,0.33517604,102330.0,102320.0,0.03139964]
[1747309709935,0.33517604,102330.0,102320.0,0.2366381]
[1747309711058,0.33517604,102330.0,102320.0,0.03139964]
[1747309711675,0.33517604,102330.0,102320.0,0.0216502]
[1747309714106,0.53206823,102330.0,102320.0,0.0216502]
[1747309714314,0.53206823,102330.0,102320.0,0.01554085]
[1747309714527,0.54191955,102330.0,102320.0,0.01554085]
[1747309714938,0.59381267,102330.0,102320.0,0.001]
[1747309715158,0.54191955,102330.0,102320.0,0.001]
[1747309715771,0.53206823,102330.0,102320.0,0.001]
[1747309724702,0.71986823,102330.0,102320.0,0.001]
[1747309725752,0.34430823,102330.0,102320.0,0.001]
[1747309725960,0.71990823,102330.0,102320.0,0.001]
[1747309726170,0.34430823,102330.0,102320.0,0.01554085]
[1747309726375,0.71990823,102330.0,102320.0,0.01554085]
[1747309727010,0.71982823,102330.0,102320.0,0.01554085]
[1747309733782,0.89564982,102330.0,102320.0,0.01554085]
[1747309733993,0.89564982,102330.0,102320.0,0.001]
[1747309733994,1.15713763,102330.0,102320.0,0.001]
[1747309735073,1.05069604,102330.0,102320.0,0.001]
[1747309735485,0.24633206,102310.0,102300.0,0.06013778]
[1747309735686,0.34364146,102310.0,102300.0,0.06624674]
[1747309736786,0.34364146,102310.0,102300.0,0.06824674]
[1747309736959,0.34364146,102310.0,102300.0,0.06213778]
[1747309738194,0.34364146,102310.0,102300.0,0.06824648]
[1747309738603,0.34364146,102310.0,102300.0,0.02264955]
[1747309739102,0.34364146,102310.0,102300.0,0.002]
[1747309739511,0.32409371,102310.0,102290.0,0.01454085]
[1747309739686,0.30258779,102300.0,102290.0,0.02065008]
[1747309740676,0.30258779,102300.0,102290.0,0.01454085]
[1747309741080,0.30258779,102300.0,102290.0,0.02065027]
[1747309741281,0.30258779,102300.0,102290.0,0.01454085]
[1747309741688,0.30258779,102300.0,102290.0,0.01554085]
[1747309741888,0.30258779,102300.0,102290.0,0.05314998]
[1747309742307,0.31336267,102300.0,102290.0,0.33243389]
[1747309742512,0.31336267,102300.0,102290.0,0.32632476]
[1747309742927,0.31336267,102300.0,102290.0,0.33343388]
[1747309744020,0.31336267,102300.0,102290.0,0.05314997]
[1747309744211,0.31336267,102300.0,102290.0,0.06041528]
[1747309745765,0.31336267,102300.0,102290.0,0.04501528]
[1747309746179,0.31336267,102300.0,102290.0,0.06051528]
[1747309747326,0.31336267,102300.0,102290.0,0.34079919]
[1747309747753,0.21605327,102300.0,102290.0,0.34079919]
[1747309748369,0.20627839,102300.0,102290.0,0.34079919]
[1747309750674,0.20627839,102300.0,102290.0,0.06051528]
[1747309752397,0.21605308,102300.0,102290.0,0.25799279]
[1747309752746,0.22582748,102300.0,102290.0,0.55587368]
[1747309752954,0.23560265,102300.0,102290.0,0.54609775]
[1747309753117,0.23560265,102300.0,102290.0,0.53632172]
[1747309753327,0.22582825,102300.0,102290.0,0.55587387]
[1747309753536,0.22582825,102300.0,102290.0,0.54609784]
[1747309753924,0.22582825,102300.0,102290.0,0.55587387]
[1747309754501,0.22582825,102300.0,102290.0,0.54609784]
[1747309754824,0.22582825,102300.0,102290.0,0.34079919]
[1747309755224,0.21605356,102300.0,102290.0,0.06051528]
[1747309755452,0.21605356,102300.0,102290.0,0.04501528]
[1747309755658,0.21605356,102300.0,102290.0,0.04697023]
[1747309757843,0.21605356,102300.0,102290.0,0.02891528]
[1747309758655,0.21605356,102300.0,102290.0,0.0308703]
[1747309760511,0.21605356,102300.0,102290.0,0.0621703]
[1747309761003,0.21605356,102300.0,102290.0,0.0468703]
[1747309761919,0.21605356,102300.0,102290.0,0.34315421]
[1747309762114,0.21605356,102300.0,102290.0,0.53672172]
[1747309762445,0.21605356,102300.0,102290.0,0.54649775]
[1747309762666,0.21605356,102300.0,102290.0,0.55627368]
[1747309763050,0.21605356,102300.0,102290.0,0.54649775]
[1747309763190,0.20627859,102300.0,102290.0,0.54649775]
[1747309764238,0.20627859,102300.0,102290.0,0.54649784]
[1747309765568,0.20627859,102300.0,102290.0,0.55627367]
[1747309765768,0.20627859,102300.0,102290.0,0.54649784]
[1747309765970,0.19650342,102300.0,102290.0,0.35097531]
[1747309769054,0.19650342,102300.0,102290.0,0.54649784]
[1747309769777,0.19650342,102300.0,102290.0,0.55627387]
[1747309771023,0.19650342,102300.0,102290.0,0.54649784]
[1747309772475,0.19650342,102300.0,102290.0,0.54649716]
[1747309773336,0.19650342,102300.0,102290.0,0.45013079]
[1747309779280,0.19650342,102300.0,102290.0,0.43413079]
[1747309779898,0.19650342,102300.0,102290.0,0.44390682]
[1747309780611,0.001,102300.0,102290.0,1.00247555]
[1747309780821,0.0107744,102300.0,102290.0,1.09978495]
[1747309781660,0.0107744,102300.0,102290.0,0.91586741]
[1747309782018,0.0205489,102300.0,102290.0,0.91586741]
[1747309782831,0.03032359,102300.0,102290.0,0.91586741]
[1747309783514,0.02982359,102300.0,102290.0,0.91586741]
[1747309783664,0.0200489,102300.0,102290.0,0.91586741]
[1747309784091,0.0200489,102300.0,102290.0,0.9749017]
[1747309784255,0.02982359,102300.0,102290.0,0.9749017]
[1747309784702,0.02982359,102300.0,102290.0,0.98952458]
[1747309784908,0.0200489,102300.0,102290.0,0.98952458]
[1747309785983,0.02982349,102300.0,102290.0,0.98952458]
[1747309786186,0.0102744,102300.0,102290.0,0.98952458]
[1747309786389,0.02004899,102300.0,102290.0,0.98952458]
[1747309786583,0.0102744,102300.0,102290.0,1.33979029]
[1747309786786,0.02004899,102300.0,102290.0,1.33979029]
[1747309787230,0.0102744,102300.0,102290.0,1.33979029]
[1747309787431,0.02004899,102300.0,102290.0,1.33979029]
[1747309788919,0.0102744,102300.0,102290.0,1.33979029]
[1747309789141,0.02004899,102300.0,102290.0,1.33979029]
[1747309791207,0.0102744,102300.0,102290.0,1.33979029]
[1747309791410,0.02004899,102300.0,102290.0,1.33979029]
[1747309791619,0.0102744,102300.0,102290.0,1.33979029]
[1747309791830,0.0200489,102300.0,102290.0,1.33979029]
[1747309792033,0.0102744,102300.0,102290.0,1.33979029]
[1747309792374,0.0200489,102300.0,102290.0,1.33979029]
[1747309796707,0.2409155,102330.0,102320.0,0.20523826]
[1747309796928,0.0356916,102330.0,102320.0,0.61693243]
[1747309797150,0.0356916,102330.0,102320.0,0.41346962]
[1747309797151,0.05523572,102330.0,102320.0,0.41346962]
[1747309797373,0.05523572,102330.0,102320.0,0.43301508]
[1747309797653,0.04546352,102330.0,102320.0,0.43912352]
[1747309797868,0.02591978,102330.0,102320.0,0.43912352]
[1747309798047,0.0195916,102330.0,102320.0,0.43912352]
[1747309798522,0.02936361,102330.0,102320.0,0.44012352]
[1747309798727,0.0195916,102330.0,102320.0,0.44012352]
[1747309799362,0.02936352,102330.0,102320.0,0.44012352]
[1747309799581,0.03036352,102330.0,102320.0,0.44012352]
[1747309799773,0.01081968,102330.0,102320.0,0.44012352]
[1747309799999,0.00104824,102330.0,102320.0,0.65624106]
[1747309800258,0.01081968,102330.0,102320.0,0.65624106]
[1747309800479,0.02059141,102330.0,102320.0,0.65624106]
[1747309800906,0.02059141,102330.0,102320.0,0.64024106]
[1747309801129,0.03036333,102330.0,102320.0,0.65018815]
[1747309801444,0.03036333,102330.0,102320.0,0.46627061]
[1747309801720,0.03036333,102330.0,102320.0,0.45007061]
[1747309802867,0.07253553,102330.0,102320.0,0.45007061]
[1747309803302,0.05299131,102330.0,102320.0,0.45007061]
[1747309803591,0.27775345,102330.0,102320.0,0.22706158]
[1747309803789,0.05299198,102330.0,102320.0,0.26615327]
[1747309803991,0.06276409,102330.0,102320.0,0.26615327]
[1747309804265,0.26063432,102330.0,102320.0,0.03159638]
[1747309804408,0.34574815,102330.0,102320.0,0.22229399]
[1747309804693,0.33597604,102330.0,102320.0,0.00710844]
[1747309805004,0.33597604,102330.0,102320.0,0.20257364]
[1747309805286,0.2582099,102330.0,102320.0,0.51674362]
[1747309805497,0.04321987,102330.0,102320.0,0.57221663]
[1747309805704,0.07253572,102330.0,102320.0,0.57221663]
[1747309805918,0.26798182,102330.0,102320.0,0.57221663]
[1747309806124,0.27775402,102330.0,102320.0,0.57221663]
[1747309806979,0.27775402,102330.0,102320.0,0.58194659]
[1747309807179,0.27775469,102330.0,102320.0,0.58194659]
[1747309807424,0.27775469,102330.0,102320.0,0.53624617]
[1747309808922,0.26798296,102330.0,102320.0,0.52647358]
[1747309809138,0.23866664,102330.0,102320.0,0.03137925]
[1747309809355,0.53213604,102330.0,102320.0,0.00710844]
[1747309809793,0.53213604,102330.0,102320.0,0.01703715]
[1747309810007,0.53213604,102330.0,102320.0,0.00710844]
[1747309810238,0.54126783,102330.0,102320.0,0.02164929]
[1747309810908,0.54126783,102330.0,102320.0,0.03131268]
[1747309811745,0.54126783,102330.0,102320.0,0.23655104]
[1747309812016,0.05235204,102330.0,102320.0,0.54595266]
[1747309812231,0.02972339,102330.0,102320.0,0.54595266]
[1747309812671,0.01018003,102330.0,102320.0,0.54595266]
[1747309812958,0.24211,102330.0,102320.0,0.53618007]
[1747309813192,0.2772545,102330.0,102320.0,0.54595275]
[1747309813413,0.0622639,102330.0,102320.0,0.54595275]
[1747309813621,0.0466639,102330.0,102320.0,0.55572534]
[1747309814706,0.0303639,102330.0,102320.0,0.55572534]
[1747309815159,0.2355823,102330.0,102320.0,0.55572534]
[1747309815606,0.2355823,102330.0,102320.0,0.60142576]
[1747309817316,0.01081968,102330.0,102320.0,0.63172576]
[1747309817520,0.01081987,102330.0,102320.0,0.63172576]
[1747309818560,0.0205916,102330.0,102320.0,0.63172576]
[1747309818774,0.03036352,102330.0,102320.0,0.63172576]
[1747309819385,0.0205916,102330.0,102320.0,0.63172576]
[1747309820128,0.00104824,102330.0,102320.0,0.63172576]
[1747309820335,0.02059131,102330.0,102320.0,0.63172576]
[1747309820611,0.00104824,102330.0,102320.0,0.63172576]
[1747309820816,0.01081987,102330.0,102320.0,0.72903516]
[1747309821049,0.01081978,102330.0,102320.0,0.72903516]
[1747309821255,0.02059151,102330.0,102320.0,0.72903516]
[1747309821430,0.01081978,102330.0,102320.0,0.72903516]
[1747309823620,0.01081987,102330.0,102320.0,0.72903516]
[1747309824007,0.03036333,102330.0,102320.0,0.72903516]
[1747309824219,0.02059141,102330.0,102320.0,0.72903516]
[1747309824430,0.03036323,102330.0,102320.0,0.72903516]
[1747309824649,0.03036323,102330.0,102320.0,0.71373516]
[1747309824863,0.03036323,102330.0,102320.0,0.61642576]
[1747309825279,0.04013524,102330.0,102320.0,0.61642576]
[1747309825652,0.03036323,102330.0,102320.0,1.02572576]
[1747309825849,0.04013524,102330.0,102320.0,1.02572576]
[1747309826477,0.03036323,102330.0,102320.0,1.02572576]
[1747309826679,0.03036323,102330.0,102320.0,1.04132576]
[1747309830305,0.00104824,102330.0,102320.0,1.13863516]
[1747309830962,0.01081978,102330.0,102320.0,1.13863516]
[1747309831177,0.00104824,102330.0,102320.0,1.13863516]
[1747309831402,0.01081978,102330.0,102320.0,1.13863516]
[1747309831819,0.00104824,102330.0,102320.0,0.72933516]
[1747309832023,0.01081968,102330.0,102320.0,0.72933516]
[1747309832227,0.02059141,102330.0,102320.0,0.72933516]
[1747309832427,0.03036323,102330.0,102320.0,0.72933516]
[1747309833083,0.04013524,102330.0,102320.0,0.32134266]
[1747309833266,0.04013524,102330.0,102320.0,0.60142576]
[1747309833471,0.04990735,102330.0,102320.0,0.62485753]
[1747309833690,0.04990735,102330.0,102320.0,0.60142576]
[1747309833885,0.04013524,102330.0,102320.0,0.60142576]
[1747309834341,0.01081968,102330.0,102320.0,0.73003516]
[1747309834550,0.02059131,102330.0,102320.0,0.73003516]
[1747309834977,0.02059141,102330.0,102320.0,0.68433474]
[1747309836692,0.03036333,102330.0,102320.0,0.68433474]
[1747309837616,0.02059141,102330.0,102320.0,0.68433474]
[1747309838794,0.01081968,102330.0,102320.0,0.68433474]
[1747309839174,0.02059141,102330.0,102320.0,0.68433474]
[1747309839627,0.02059131,102330.0,102320.0,0.68433474]
[1747309839841,0.01081968,102330.0,102320.0,0.68433474]
[1747309840056,0.00104824,102330.0,102320.0,0.68433474]
[1747309840268,0.01081978,102330.0,102320.0,0.68433474]
[1747309841130,0.01081968,102330.0,102320.0,0.68433474]
[1747309841334,0.01081968,102330.0,102320.0,0.77174424]
[1747309842708,0.01081978,102330.0,102320.0,0.77174424]
[1747309842920,0.00104824,102330.0,102320.0,0.95548831]
[1747309843502,0.00104824,102330.0,102320.0,0.77174201]
[1747309843705,0.00104824,102330.0,102320.0,1.18004201]
[1747309843915,4.824e-05,102330.0,102320.0,1.18004201]
[1747309844124,4.824e-05,102330.0,102320.0,1.18104201]
[1747309845388,4.824e-05,102330.0,102320.0,1.18304201]
[1747309845840,0.00981968,102330.0,102320.0,1.18304201]
[1747309846049,4.824e-05,102330.0,102320.0,1.18304201]
[1747309846258,0.00981968,102330.0,102320.0,1.37524201]
[1747309846882,0.01481968,102330.0,102320.0,1.37524201]
[1747309847547,0.02459131,102330.0,102320.0,1.37524201]
[1747309847756,0.01481968,102330.0,102320.0,1.37524201]
[1747309847973,0.01481968,102330.0,102320.0,1.37524166]
[1747309848183,0.01481968,102330.0,102320.0,1.36557827]
[1747309848945,0.02459122,102330.0,102320.0,1.36557827]
[1747309849125,0.01481968,102330.0,102320.0,1.36557827]
[1747309849271,0.00504824,102330.0,102320.0,1.36557827]
[1747309850121,0.01481978,102330.0,102320.0,1.36557827]
[1747309850477,0.01481978,102330.0,102320.0,1.34927827]
[1747309850690,0.01481978,102330.0,102320.0,1.15707827]
[1747309850916,0.07523572,102330.0,102320.0,0.96626567]
[1747309851151,0.07523572,102330.0,102320.0,0.95833197]
[1747309851152,0.08500783,102330.0,102320.0,0.95833197]
[1747309851376,0.06546352,102330.0,102320.0,0.95833197]
[1747309851581,0.07523563,102330.0,102320.0,1.14207827]
[1747309851783,0.05923563,102330.0,102320.0,1.14207827]
[1747309852158,0.04946352,102330.0,102320.0,1.14207827]
[1747309852364,0.05923563,102330.0,102320.0,1.14207827]
[1747309852593,0.04946352,102330.0,102320.0,1.14207827]
[1747309852790,0.05923563,102330.0,102320.0,1.14207827]
[1747309853643,0.07433563,102330.0,102320.0,1.14207827]
[1747309854795,0.06456352,102330.0,102320.0,1.14207827]
[1747309855000,0.0547916,102330.0,102320.0,1.14207827]
[1747309857450,0.02459151,102330.0,102320.0,1.14207827]
[1747309858276,0.01481978,102330.0,102320.0,1.14207827]
[1747309858497,0.0245916,102330.0,102320.0,1.14207827]
[1747309858702,0.02459151,102330.0,102320.0,1.14207827]
[1747309860457,0.01481978,102330.0,102320.0,1.14207827]
[1747309861193,0.02459141,102330.0,102320.0,1.14207827]
[1747309861616,0.02459141,102330.0,102320.0,1.20111256]
[1747309862637,0.04069141,102330.0,102320.0,1.20111256]
[1747309863053,0.03091978,102330.0,102320.0,1.20111256]
[1747309863906,0.01481978,102330.0,102320.0,1.20111256]
[1747309864751,0.00504824,102330.0,102320.0,1.20111256]
[1747309864907,0.01481978,102330.0,102320.0,1.20111256]
[1747309866160,0.00504824,102330.0,102320.0,1.23341256]
[1747309870322,0.02459141,102330.0,102320.0,1.20111256]
[1747309870523,0.03969131,102330.0,102320.0,1.20111256]
[1747309870739,0.05923524,102330.0,102320.0,0.83361996]
[1747309870911,0.04946313,102330.0,102320.0,1.20111256]
[1747309871556,0.05923514,102330.0,102320.0,1.20111256]
[1747309871725,0.04946313,102330.0,102320.0,1.20111256]
[1747309872713,0.06506313,102330.0,102320.0,1.20111256]
[1747309873701,0.07483514,102330.0,102320.0,1.20111256]
[1747309873941,0.07483505,102330.0,102320.0,0.72653797]
[1747309874145,0.08460716,102330.0,102320.0,0.92005686]
[1747309874351,0.08460716,102330.0,102320.0,1.10380316]
[1747309875083,0.08460716,102330.0,102320.0,0.73631056]
[1747309875300,0.08460716,102330.0,102320.0,1.10380316]
[1747309876776,0.07483505,102330.0,102320.0,1.10380316]
[1747309877361,0.03969131,102330.0,102320.0,1.10380316]
[1747309877609,0.04946323,102330.0,102320.0,1.10380316]
[1747309879176,0.07463534,102330.0,102320.0,1.10380316]
[1747309879574,0.07463534,102330.0,102320.0,0.69450316]
[1747309880833,0.07463534,102330.0,102320.0,1.03450316]
[1747309882810,0.06486323,102330.0,102320.0,1.03450316]
[1747309882984,0.07463534,102330.0,102320.0,1.03450316]
[1747309883842,0.06486323,102330.0,102320.0,1.03450316]
[1747309884047,0.07463534,102330.0,102320.0,1.03450316]
[1747309884193,0.07463534,102330.0,102320.0,1.04423286]
[1747309884393,0.06486323,102330.0,102320.0,1.04423286]
[1747309885257,0.07463534,102330.0,102320.0,1.04423286]
[1747309885472,0.06486323,102330.0,102320.0,1.04423286]
[1747309885905,0.07463534,102330.0,102320.0,1.04423286]
[1747309887385,0.07463524,102330.0,102320.0,1.04423286]
[1747309889416,0.06486323,102330.0,102320.0,1.04423286]
[1747309890776,0.07463534,102330.0,102320.0,1.04423286]
[1747309890984,0.06486323,102330.0,102320.0,1.06766463]
[1747309891165,0.06486323,102330.0,102320.0,1.04423286]
[1747309892641,0.06486313,102330.0,102320.0,1.04423286]
[1747309892845,0.07463514,102330.0,102320.0,1.04423286]
[1747309897075,0.27985421,102330.0,102320.0,1.03446027]